fUST/lending_fUST_20240821
["ID","MTS","AMOUNT","RATE_DAILY","PERIOD"]
[335396561,1724185846884,-151.0,0.00034,7]
[335396562,1724185846896,-168.884896,0.00034,7]
[335396563,1724185846907,-151.0,0.00034,7]
[335396564,1724185846917,-151.0,0.00034,7]
[335396565,1724185846929,-294.420145,0.00034,7]
[335396566,1724185846939,-294.420145,0.00034,7]
[335396567,1724185846950,-14768.10920276,0.00034,7]
[335396568,1724185846960,-271.481129,0.00034247,2]
[335396569,1724185846970,-153.0,0.00034288,2]
[335396570,1724185846978,-153.0,0.00034288,2]
[335396571,1724185846989,-153.0,0.00034288,2]
[335396572,1724185847000,-153.0,0.00034288,2]
[335396573,1724185847010,-153.0,0.00034288,2]
[335396574,1724185847020,-306.0,0.00034288,2]
[335396575,1724185847031,-1000.0,0.000344,16]
[335396576,1724185847042,-3524.15,0.0003452,21]
[335396577,1724185847053,-3524.15,0.0003452,21]
[335396578,1724185847064,-3524.15,0.0003452,21]
[335396579,1724185847073,-3524.15,0.0003452,21]
[335396580,1724185847083,-3524.15,0.0003452,21]
[335396581,1724185847092,-3524.15,0.0003452,21]
[335396582,1724185847102,-3524.15,0.0003452,21]
[335396583,1724185847111,-3524.15,0.0003452,21]
[335396584,1724185847120,-3524.15,0.0003452,21]
[335396585,1724185847130,-3524.15,0.0003452,21]
[335396586,1724185847139,-3524.15,0.0003452,21]
[335396587,1724185847149,-3524.15,0.0003452,21]
[335396588,1724185847158,-3524.15,0.0003452,21]
[335396589,1724185847168,-3524.15,0.0003452,21]
[335396590,1724185847179,-3524.15,0.0003452,21]
[335396591,1724185847190,-3524.15,0.0003452,21]
[335396592,1724185847200,-3524.15,0.0003452,21]
[335396593,1724185847212,-3524.15,0.0003452,21]
[335396594,1724185847222,-3524.15,0.00034599,21]
[335396595,1724185847232,-3524.15,0.00034599,21]
[335396596,1724185847243,-3524.15,0.00034599,21]
[335396597,1724185847254,-3524.15,0.00034599,21]
[335396598,1724185847264,-3524.15,0.00034599,21]
[335396599,1724185847274,-3524.34433779,0.00034599,21]
[335396600,1724185847285,-85331.89307072,0.000346,60]
[335396601,1724185847295,-151.0,0.000346,7]
[335396602,1724185847306,-151.0,0.000346,7]
[335396603,1724185847317,-151.0,0.000346,7]
[335396604,1724185847327,-151.0,0.000346,7]
[335396605,1724185847337,-151.0,0.000346,7]
[335396606,1724185847346,-249.517759,0.000346,7]
[335396607,1724185847356,-249.517759,0.000346,7]
[335396608,1724185847366,-3314.287428,0.000346,7]
[335396609,1724185847376,-3314.287428,0.000346,7]
[335396610,1724185847387,-151.0,0.000346,7]
[335396611,1724185847397,-171.075184,0.000346,7]
[335396612,1724185847407,-151.0,0.000346,7]
[335396613,1724185847417,-151.0,0.000346,7]
[335396614,1724185847427,-151.0,0.000346,7]
[335396615,1724185847438,-151.0,0.000346,7]
[335396616,1724185847450,-151.0,0.000346,7]
[335396617,1724185847461,-151.0,0.000346,7]
[335396618,1724185847471,-294.420145,0.000346,7]
[335396619,1724185847482,-198.801964,0.000346,7]
[335396620,1724185847493,-294.420145,0.000346,7]
[335396621,1724185847502,-151.0,0.000346,7]
[335396622,1724185847514,-151.0,0.000346,7]
[335396623,1724185847525,-207.6000865,0.0003472,2]
[335396624,1724185847535,-306.0,0.0003472,2]
[335396625,1724185847546,-207.6000865,0.0003472,2]
[335396626,1724185847557,-207.6000865,0.0003472,2]
[335396627,1724185847569,-207.6000865,0.0003472,2]
[335396628,1724185847578,-207.6000865,0.0003472,2]
[335396629,1724185847589,-414.8881466,0.0003472,2]
[335396630,1724185847599,-11880.49221652,0.00034731,14]
[335396631,1724185847610,-800.86,0.00034799,21]
[335396632,1724185847622,-224.15,0.000348,31]
[335396633,1724185847632,-224.15,0.000348,31]
[335396634,1724185847643,-224.15,0.000348,31]
[335396635,1724185847655,-224.15,0.000348,31]
[335396636,1724185847666,-224.15,0.000348,31]
[335396637,1724185847677,-224.15,0.000348,31]
[335396638,1724185847688,-224.15,0.000348,31]
[335396639,1724185847697,-224.15,0.000348,31]
[335396640,1724185847709,-224.15,0.000348,31]
[335396641,1724185847719,-224.15,0.000348,31]
[335396642,1724185847729,-224.15,0.000348,31]
[335396643,1724185847740,-224.15,0.000348,31]
[335396644,1724185847749,-224.15,0.000348,31]
[335396645,1724185847759,-224.15,0.000348,31]
[335396646,1724185847769,-224.15,0.000348,31]
[335396647,1724185847781,-224.15,0.000348,31]
[335396648,1724185847792,-6968.06052252,0.000348,12]
[335396649,1724185847803,-175.262894,0.000349,2]
[335396650,1724185847815,-564.53831658,0.000349,2]
[335396651,1724185847826,-755.0,0.000349,2]
[335396652,1724185847839,-1000.0,0.000349,16]
[335396653,1724185847850,-4134.99,0.000349,14]
[335396654,1724185847860,-734.2675517,0.0003493,2]
[335396655,1724185847871,-489.18411625,0.00034931,3]
[335396656,1724185847883,-500.0,0.00034931,21]
[335396657,1724185847894,-392.64732751,0.00034931,21]
[335396658,1724185847904,-500.0,0.00034931,21]
[335396659,1724185847915,-500.0,0.00034931,21]
[335396660,1724185847925,-500.0,0.00034931,21]
[335396661,1724185847936,-500.0,0.00034931,21]
[335396662,1724185847947,-500.0,0.00034931,7]
[335396663,1724185847957,-500.0,0.00034931,7]
[335396664,1724185847967,-500.0,0.00034931,21]
[335396665,1724185847978,-314.47371045,0.00034931,21]
[335396666,1724185847988,-500.0,0.00034931,21]
[335396667,1724185847998,-500.0,0.00034931,21]
[335396668,1724185848008,-500.0,0.00034931,21]
[335396669,1724185848019,-500.0,0.00034931,21]
[335396670,1724185848028,-500.0,0.00034931,21]
[335396671,1724185848038,-500.0,0.00034931,21]
[335396672,1724185848048,-500.0,0.00034931,21]
[335396673,1724185848059,-500.0,0.00034931,21]
[335396674,1724185848069,-500.0,0.00034931,21]
[335396675,1724185848078,-500.0,0.00034931,21]
[335396676,1724185848087,-500.0,0.00034931,21]
[335396677,1724185848097,-500.0,0.00034931,21]
[335396678,1724185848107,-500.0,0.00034931,21]
[335396679,1724185848116,-500.0,0.00034931,21]
[335396680,1724185848127,-500.0,0.00034931,21]
[335396681,1724185848137,-500.0,0.00034931,21]
[335396682,1724185848146,-500.0,0.00034931,21]
[335396683,1724185848155,-500.0,0.00034931,21]
[335396684,1724185848164,-500.0,0.00034931,21]
[335396685,1724185848174,-152.2,0.00034931,21]
[335396686,1724185848183,-500.0,0.00034931,21]
[335396687,1724185848192,-500.0,0.00034931,21]
[335396688,1724185848201,-469.73,0.00034931,21]
[335396689,1724185848211,-1765.31467839,0.00034931,2]
[335396690,1724185848220,-500.0,0.00034931,21]
[335396691,1724185848229,-471.9892997,0.00034931,21]
[335396692,1724185848239,-500.0,0.00034931,21]
[335396693,1724185848248,-516.93757754,0.00034931,21]
[335396694,1724185848257,-500.0,0.00034931,21]
[335396695,1724185848267,-173.97906158,0.00034931,21]
[335396696,1724185848276,-500.0,0.00034931,21]
[335396697,1724185848286,-502.69771146,0.00034931,21]
[335396698,1724185848295,-377.46641472,0.00034931,21]
[335396699,1724185848305,-500.0,0.00034931,21]
[335396700,1724185848315,-500.0,0.00034931,21]
[335396701,1724185848324,-501.55091637,0.00034931,21]
[335396702,1724185848335,-500.40730968,0.00034931,21]
[335396703,1724185848344,-500.0,0.00034931,21]
[335396704,1724185848353,-500.0,0.00034931,21]
[335396705,1724185848362,-501.90928877,0.00034931,21]
[335396706,1724185848372,-500.0,0.00034931,21]
[335396707,1724185848381,-500.0,0.00034931,21]
[335396708,1724185848390,-500.0,0.00034931,21]
[335396709,1724185848400,-500.0,0.00034931,21]
[335396710,1724185848409,-410.4,0.00034931,21]
[335396711,1724185848418,-500.0,0.00034931,21]
[335396712,1724185848428,-500.0,0.00034931,21]
[335396713,1724185848437,-500.0,0.00034931,21]
[335396714,1724185848447,-581.9,0.00034931,21]
[335396715,1724185848458,-500.0,0.00034931,21]
[335396716,1724185848467,-500.0,0.00034931,21]
[335396717,1724185848476,-500.0,0.00034931,21]
[335396718,1724185848486,-500.0,0.00034931,21]
[335396719,1724185848495,-538.4638379,0.00034931,21]
[335396720,1724185848504,-500.0,0.00034931,21]
[335396721,1724185848515,-500.0,0.00034931,21]
[335396722,1724185848524,-500.0,0.00034931,21]
[335396723,1724185848534,-500.0,0.00034931,21]
[335396724,1724185848543,-500.0,0.00034931,21]
[335396725,1724185848649,-500.0,0.00034931,21]
[335396726,1724185848661,-500.0,0.00034931,21]
[335396727,1724185848671,-500.0,0.00034931,21]
[335396728,1724185848681,-500.0,0.00034931,21]
[335396729,1724185848691,-514.42881803,0.00034931,21]
[335396730,1724185848701,-500.0,0.00034931,21]
[335396731,1724185848712,-500.0,0.00034931,21]
[335396732,1724185848722,-500.0,0.00034931,21]
[335396733,1724185848732,-500.0,0.00034931,21]
[335396734,1724185848742,-500.0,0.00034931,21]
[335396735,1724185848751,-500.0,0.00034931,21]
[335396736,1724185848761,-500.0,0.00034931,21]
[335396737,1724185848770,-308.65257582,0.00034931,21]
[335396738,1724185848780,-500.0,0.00034931,21]
[335396739,1724185848789,-500.0,0.00034931,21]
[335396740,1724185848799,-500.0,0.00034931,21]
[335396741,1724185848809,-500.0,0.00034931,21]
[335396742,1724185848819,-500.0,0.00034931,21]
[335396743,1724185848828,-285.0,0.00034931,7]
[335396744,1724185848838,-500.0,0.00034931,21]
[335396745,1724185848847,-500.0,0.00034931,21]
[335396746,1724185848856,-285.0,0.00034931,7]
[335396747,1724185848865,-500.0,0.00034931,21]
[335396748,1724185848875,-285.0,0.00034931,7]
[335396749,1724185848885,-500.0,0.00034931,21]
[335396750,1724185848895,-501.2744033,0.00034931,21]
[335396751,1724185848905,-500.0,0.00034931,21]
[335396752,1724185848915,-500.0,0.00034931,21]
[335396753,1724185848926,-500.0,0.00034931,21]
[335396754,1724185848936,-500.0,0.00034931,21]
[335396755,1724185848946,-340.55325112,0.00034931,21]
[335396756,1724185848957,-500.0,0.00034931,21]
[335396757,1724185848967,-382.39040133,0.00034931,21]
[335396758,1724185848976,-500.0,0.00034931,21]
[335396759,1724185848986,-500.0,0.00034931,21]
[335396760,1724185848995,-500.0,0.00034931,21]
[335396761,1724185849004,-531.59146802,0.00034931,21]
[335396762,1724185849017,-500.0,0.00034931,21]
[335396763,1724185849026,-500.0,0.00034931,21]
[335396764,1724185849036,-502.59095076,0.00034931,21]
[335396765,1724185849045,-500.0,0.00034931,21]
[335396766,1724185849056,-500.0,0.00034931,20]
[335396767,1724185849067,-500.0,0.00034931,20]
[335396768,1724185849077,-502.98749075,0.00034931,20]
[335396769,1724185849088,-500.0,0.00034931,21]
[335396770,1724185849097,-500.0,0.00034931,21]
[335396771,1724185849108,-500.0,0.00034931,21]
[335396772,1724185849118,-510.9339362,0.00034931,21]
[335396773,1724185849128,-500.0,0.00034931,21]
[335396774,1724185849138,-279.57087627,0.00034931,21]
[335396775,1724185849148,-500.0,0.00034931,21]
[335396776,1724185849159,-500.0,0.00034931,21]
[335396777,1724185849169,-500.0,0.00034931,21]
[335396778,1724185849180,-500.0,0.00034931,21]
[335396779,1724185849189,-502.70414768,0.00034931,21]
[335396780,1724185849198,-500.0,0.00034931,21]
[335396781,1724185849208,-500.0,0.00034931,21]
[335396782,1724185849217,-500.0,0.00034931,21]
[335396783,1724185849227,-264.61368154,0.00034931,21]
[335396784,1724185849237,-500.0,0.00034931,21]
[335396785,1724185849246,-500.0,0.00034931,21]
[335396786,1724185849257,-500.0,0.00034931,21]
[335396787,1724185849267,-500.0,0.00034931,21]
[335396788,1724185849278,-260.43263547,0.00034931,21]
[335396789,1724185849287,-500.0,0.00034931,21]
[335396790,1724185849298,-500.0,0.00034931,21]
[335396791,1724185849308,-500.0,0.00034931,21]
[335396792,1724185849319,-500.0,0.00034931,21]
[335396793,1724185849329,-578.1,0.00034931,21]
[335396794,1724185849338,-500.0,0.00034931,21]
[335396795,1724185849347,-526.6487227,0.00034931,21]
[335396796,1724185849357,-500.0,0.00034931,21]
[335396797,1724185849367,-500.0,0.00034931,21]
[335396798,1724185849376,-500.0,0.00034931,21]
[335396799,1724185849386,-500.0,0.00034931,21]
[335396800,1724185849395,-500.0,0.00034931,21]
[335396801,1724185849405,-500.0,0.00034931,21]
[335396802,1724185849416,-500.0,0.00034931,21]
[335396803,1724185849425,-500.0,0.00034931,21]
[335396804,1724185849436,-509.52675706,0.00034931,21]
[335396805,1724185849446,-500.0,0.00034931,21]
[335396806,1724185849458,-500.0,0.00034931,21]
[335396807,1724185849469,-500.0,0.00034931,21]
[335396808,1724185849480,-383.42,0.00034931,21]
[335396809,1724185849491,-500.0,0.00034931,21]
[335396810,1724185849500,-565.00412965,0.00034931,21]
[335396811,1724185849511,-500.0,0.00034931,21]
[335396812,1724185849522,-500.0,0.00034931,21]
[335396813,1724185849533,-500.0,0.00034931,21]
[335396814,1724185849544,-235.95218747,0.00034931,21]
[335396815,1724185849553,-500.0,0.00034931,21]
[335396816,1724185849563,-594.71,0.00034931,21]
[335396817,1724185849572,-500.0,0.00034931,21]
[335396818,1724185849582,-248.30319001,0.00034931,21]
[335396819,1724185849591,-500.0,0.00034931,21]
[335396820,1724185849601,-500.0,0.00034931,21]
[335396821,1724185849616,-500.0,0.00034931,21]
[335396822,1724185849625,-500.53094913,0.00034931,21]
[335396823,1724185849636,-500.0,0.00034931,21]
[335396824,1724185849645,-500.0,0.00034931,21]
[335396825,1724185849656,-500.0,0.00034931,21]
[335396826,1724185849666,-500.0,0.00034931,21]
[335396827,1724185849676,-519.73,0.00034931,21]
[335396828,1724185849685,-500.0,0.00034931,21]
[335396829,1724185849695,-500.0,0.00034931,21]
[335396830,1724185849704,-150.0,0.00034931,21]
[335396831,1724185849719,-500.0,0.00034931,21]
[335396832,1724185849729,-150.0,0.00034931,21]
[335396833,1724185849737,-150.0,0.00034931,21]
[335396834,1724185849747,-241.74703384,0.00034931,21]
[335396835,1724185849756,-500.0,0.00034931,21]
[335396836,1724185849766,-500.0,0.00034931,21]
[335396837,1724185849775,-500.0,0.00034931,21]
[335396838,1724185849784,-500.0,0.00034931,21]
[335396839,1724185849794,-200.0,0.00034931,7]
[335396840,1724185849803,-500.0,0.00034931,21]
[335396841,1724185849812,-500.0,0.00034931,21]
[335396842,1724185849822,-200.0,0.00034931,7]
[335396843,1724185849831,-500.0,0.00034931,21]
[335396844,1724185849841,-500.0,0.00034931,21]
[335396845,1724185849850,-500.0,0.00034931,21]
[335396846,1724185849859,-500.0,0.00034931,21]
[335396847,1724185849869,-500.0,0.00034931,21]
[335396848,1724185849879,-500.0,0.00034931,21]
[335396849,1724185849890,-44.31949228,0.00034931,21]
[335396850,1724185901122,153.52211286,0.00018854,2]
[335396870,1724186739147,-154.66746495,0.00013333,2]
[335396871,1724186739170,-199.615672,0.00014247,2]
[335396872,1724186739192,-161.50403,0.00014247,2]
[335396873,1724186739213,-545.71776736,0.00016438,2]
[335396874,1724186739235,-230.1,0.00018864,2]
[335396875,1724186739256,-162.230416,0.00019178,2]
[335396876,1724186739278,-145.41296176,0.00019178,2]
[335396879,1724186829101,-225.5,0.00018865,2]
[335396880,1724186829123,-105.58703824,0.00019178,2]
[335396881,1724186829144,-166.753821,0.00019178,2]
[335396882,1724186829166,-500.0,0.00019222,2]
[335396883,1724186829188,-142.94234558,0.00019717,2]
[335396884,1724186831104,-357.05765442,0.00019717,2]
[335396885,1724186831125,-136.8549722,0.00019827,2]
[335396886,1724186833106,-363.1450278,0.00019827,2]
[335396887,1724186833130,-313.10862572,0.0001999,2]
[335396888,1724186835142,-10116.06139671,0.0001999,2]
[335396936,1724187038223,-213.6610692,0.00019007,2]
[335396939,1724187038234,-500.0,0.0001924,2]
[335396941,1724187038245,-32713.632791,0.0001999,2]
[335396943,1724187038255,-459.85,0.0001999,3]
[335396945,1724187038264,-229.93,0.0001999,3]
[335396947,1724187038274,-689.8,0.0001999,3]
[335396949,1724187038284,-308.48,0.0001999,3]
[335396951,1724187038296,-616.98,0.0001999,3]
[335396953,1724187038306,-156.6552172,0.0002,2]
[335396955,1724187038315,-126499.41497098,0.0002,2]
[335396957,1724187038326,-1070.932237,0.00020049,2]
[335396959,1724187038335,-500.0,0.00020149,2]
[335396961,1724187038345,-225.5,0.00020331,2]
[335396963,1724187038354,-500.0,0.00020441,2]
[335396965,1724187038364,-199.615672,0.00020707,2]
[335396967,1724187038373,-150.0,0.00021,2]
[335396969,1724187038382,-500.0,0.00021237,2]
[335396971,1724187038392,-919.7,0.0002136,3]
[335396973,1724187038401,-459.86,0.0002136,3]
[335396975,1724187038410,-616.96,0.0002136,3]
[335396977,1724187038420,-308.48,0.0002136,3]
[335396979,1724187038429,-509.78698035,0.00021738,2]
[335396981,1724187038440,-225.5,0.00021798,2]
[335396983,1724187038450,-302.27461649,0.00022,2]
[335396985,1724187038460,-3557.99428053,0.00022,30]
[335396987,1724187038469,-1070.932237,0.00022171,2]
[335396989,1724187038478,-302.27461649,0.0002222,2]
[335396991,1724187038488,-302.27461649,0.0002244,2]
[335396993,1724187038498,-302.27461649,0.0002266,2]
[335396995,1724187038507,-302.27461649,0.0002288,2]
[335396997,1724187038517,-453.41192473,0.000231,4]
[335396999,1724187038527,-225.5,0.00023265,2]
[335397002,1724187038538,-453.41192473,0.0002332,4]
[335397004,1724187038548,-319.50121324,0.0002354,4]
[335397006,1724187038560,-500.0,0.00024139,2]
[335397008,1724187038569,-535.82779132,0.0002416,2]
[335397010,1724187038579,-154.60575532,0.00024203,2]
[335397012,1724187038588,-435.0,0.0002422,2]
[335397014,1724187038599,-216.35009668,0.0002423,2]
[335397016,1724187038610,-154.71377951,0.0002423,2]
[335397018,1724187038620,-375.62643474,0.0002423,2]
[335397020,1724187038630,-429.53094499,0.0002423,2]
[335397022,1724187038641,-1070.932237,0.00024292,2]
[335397024,1724187038650,-10342.93698711,0.00024571,2]
[335397026,1724187038665,-953.45396956,0.00024651,2]
[335397028,1724187038674,-200.0,0.00024658,15]
[335397030,1724187038685,-1694.7430816,0.00024658,2]
[335397033,1724187038696,-32713.632791,0.0002468,3]
[335397035,1724187038706,-782.65797788,0.00024688,2]
[335397037,1724187038718,-225.5,0.00024732,2]
[335397039,1724187038729,-3135.64803338,0.00024756,30]
[335397041,1724187038739,-160.83387276,0.00024756,2]
[335397043,1724187038750,-277.6716568,0.00024756,2]
[335397045,1724187038760,-154.60575532,0.00025,2]
[335397047,1724187038770,-258.18032213,0.00025,120]
[335397049,1724187038779,-277.92028119,0.00025,30]
[335397051,1724187038789,-308.19214429,0.00025,2]
[335397053,1724187038800,-503.79102748,0.00025,2]
[335397056,1724187038810,-503.79102748,0.0002525,2]
[335397058,1724187038819,-503.79102748,0.000255,2]
[335397060,1724187038829,-503.79102748,0.0002575,2]
[335397062,1724187038840,-503.79102748,0.00026,2]
[335397064,1724187038849,-500.0,0.00026005,2]
[335397066,1724187038859,-225.5,0.00026198,2]
[335397068,1724187038868,-503.79102748,0.0002625,2]
[335397070,1724187038878,-535.82779132,0.0002627,2]
[335397072,1724187038888,-1070.932237,0.00026414,2]
[335397074,1724187038897,-503.79102748,0.000265,2]
[335397076,1724187038907,-500.0,0.00026599,2]
[335397078,1724187038917,-500.0,0.00026599,2]
[335397080,1724187038926,-180.56899049,0.00026599,2]
[335397082,1724187038935,-500.0,0.00026599,2]
[335397084,1724187038945,-500.0,0.00026599,2]
[335397086,1724187038954,-500.0,0.00026599,2]
[335397088,1724187038964,-500.0,0.00026599,2]
[335397091,1724187038977,-500.0,0.00026599,2]
[335397093,1724187038987,-884.12,0.000266,31]
[335397095,1724187038996,-884.12,0.000266,31]
[335397097,1724187039005,-884.12,0.000266,31]
[335397099,1724187039015,-884.12,0.000266,31]
[335397101,1724187039024,-884.12,0.000266,31]
[335397103,1724187039034,-884.12,0.000266,31]
[335397105,1724187039045,-884.12,0.000266,31]
[335397107,1724187039054,-884.12,0.000266,31]
[335397109,1724187039063,-884.12,0.000266,31]
[335397111,1724187039073,-884.12,0.000266,31]
[335397113,1724187039082,-884.12,0.000266,31]
[335397115,1724187039091,-884.12,0.000266,31]
[335397117,1724187039100,-503.79102748,0.0002675,2]
[335397119,1724187039110,-503.79102748,0.00027,2]
[335397121,1724187039119,-199.0,0.00027,2]
[335397123,1724187039128,-199.615672,0.00027167,2]
[335397125,1724187039137,-503.79102748,0.0002725,2]
[335397127,1724187039146,-225.5,0.00027665,2]
[335397129,1724187039155,-166.332644,0.00027811,2]
[335397131,1724187039165,-339.14513774,0.00028,30]
[335397133,1724187039174,-166.332644,0.00028275,2]
[335397135,1724187039183,-535.82779132,0.0002838,2]
[335397137,1724187039192,-503.33031317,0.00028478,2]
[335397139,1724187039201,-150.112233,0.000285,5]
[335397141,1724187039211,-1070.932237,0.00028535,2]
[335397143,1724187039222,-884.12,0.000286,31]
[335397145,1724187039231,-884.12,0.000286,31]
[335397147,1724187039240,-884.12,0.000286,31]
[335397149,1724187039249,-884.12,0.000286,31]
[335397151,1724187039258,-884.12,0.000286,31]
[335397153,1724187039267,-884.12,0.000286,31]
[335397155,1724187039276,-884.12,0.000286,31]
[335397157,1724187039285,-884.12,0.000286,31]
[335397159,1724187039295,-884.12,0.000286,31]
[335397161,1724187039304,-884.12,0.000286,31]
[335397163,1724187039314,-884.12,0.000286,31]
[335397165,1724187039323,-884.12,0.000286,31]
[335397167,1724187039333,-884.12,0.000286,31]
[335397169,1724187039343,-884.12,0.000286,31]
[335397171,1724187039352,-884.12,0.000286,31]
[335397173,1724187039364,-884.12,0.000286,31]
[335397175,1724187039374,-884.12,0.000286,31]
[335397177,1724187039387,-884.12,0.000286,31]
[335397179,1724187039397,-884.12,0.000286,31]
[335397181,1724187039410,-884.12,0.000286,31]
[335397184,1724187039421,-884.12,0.000286,31]
[335397186,1724187039432,-884.12,0.000286,31]
[335397188,1724187039441,-884.12,0.000286,31]
[335397190,1724187039451,-884.12,0.000286,31]
[335397192,1724187039462,-166.332644,0.00028739,2]
[335397193,1724187039472,-225.5,0.00029132,2]
[335397194,1724187039482,-151.0,0.00029132,2]
[335397195,1724187039494,-166.332644,0.00029202,2]
[335397196,1724187039505,-150.112233,0.000293,7]
[335397197,1724187039516,-178.69269968,0.0003,5]
[335397198,1724187039527,-225.0,0.0003,2]
[335397199,1724187039538,-150.112233,0.000301,5]
[335397200,1724187039549,-500.0,0.0003021,7]
[335397201,1724187039559,-500.0,0.00030414,7]
[335397202,1724187039569,-535.82779132,0.0003049,2]
[335397203,1724187039580,-225.5,0.00030599,2]
[335397204,1724187039590,-151.0,0.00030599,2]
[335397205,1724187039600,-1070.932237,0.00030657,2]
[335397206,1724187039613,-32713.632791,0.0003069,4]
[335397208,1724187039625,-20895.4670824,0.000307,9]
[335397213,1724187039740,-884.12,0.000307,31]
[335397214,1724187039752,-884.12,0.000307,31]
[335397215,1724187039763,-884.12,0.000307,31]
[335397216,1724187039774,-884.12,0.000307,31]
[335397217,1724187039786,-884.12,0.000307,31]
[335397218,1724187039798,-884.12,0.000307,31]
[335397219,1724187039809,-884.12,0.000307,31]
[335397220,1724187039820,-884.12,0.000307,31]
[335397221,1724187039830,-884.12,0.000307,31]
[335397222,1724187039841,-884.12,0.000307,31]
[335397223,1724187039851,-884.12,0.000307,31]
[335397224,1724187039862,-884.12,0.000307,31]
[335397225,1724187039874,-884.12,0.000307,31]
[335397226,1724187039884,-884.12,0.000307,31]
[335397227,1724187039894,-884.12,0.000307,31]
[335397228,1724187039903,-884.12,0.000307,31]
[335397229,1724187039912,-884.12,0.000307,31]
[335397230,1724187039922,-884.12,0.000307,31]
[335397231,1724187039931,-884.12,0.000307,31]
[335397232,1724187039941,-884.12,0.000307,31]
[335397233,1724187039950,-884.12,0.000307,31]
[335397234,1724187039961,-884.12,0.000307,31]
[335397235,1724187039974,-884.12,0.000307,31]
[335397236,1724187039986,-884.12,0.000307,31]
[335397237,1724187039998,-503.32049717,0.00030734,7]
[335397238,1724187040009,-150.112233,0.000309,5]
[335397239,1724187040019,-500.0,0.00031639,7]
[335397240,1724187040030,-150.112233,0.000317,7]
[335397241,1724187040041,-507.00804052,0.00032024,2]
[335397242,1724187040055,-500.0,0.00032033,7]
[335397243,1724187040067,-225.5,0.00032065,3]
[335397244,1724187040079,-151.0,0.00032065,3]
[335397245,1724187040089,-163568.163955,0.0003249,4]
[335397246,1724187040102,-150.112233,0.000325,10]
[335397247,1724187040112,-323253.02218176,0.000325,60]
[335397248,1724187040121,-4222.86,0.000325,14]
[335397249,1724187040131,-535.82779132,0.000326,2]
[335397250,1724187040141,-884.12,0.000327,31]
[335397251,1724187040151,-884.12,0.000327,31]
[335397252,1724187040163,-884.12,0.000327,31]
[335397253,1724187040173,-884.12,0.000327,31]
[335397254,1724187040184,-884.12,0.000327,31]
[335397255,1724187040194,-884.12,0.000327,31]
[335397256,1724187040204,-884.12,0.000327,31]
[335397257,1724187040217,-884.12,0.000327,31]
[335397258,1724187040227,-884.12,0.000327,31]
[335397259,1724187040237,-884.12,0.000327,31]
[335397260,1724187040248,-884.12,0.000327,31]
[335397261,1724187040258,-884.12,0.000327,31]
[335397262,1724187040270,-884.12,0.000327,31]
[335397263,1724187040281,-884.12,0.000327,31]
[335397264,1724187040291,-884.12,0.000327,31]